fUST/lending_fUST_20250726
["ID","MTS","AMOUNT","RATE_DAILY","PERIOD"]
[375004295,1753498249711,-460.0,0.00020821,2]
[375004297,1753498249721,-460.0,0.00020821,2]
[375004299,1753498249730,-460.0,0.00020821,2]
[375004301,1753498249740,-460.0,0.00020821,2]
[375004303,1753498249751,-476.69770391,0.00020821,2]
[375004305,1753498249761,-460.0,0.00020821,2]
[375004308,1753498249775,-460.0,0.00020821,2]
[375004310,1753498249785,-460.0,0.00020821,2]
[375004312,1753498249794,-587.9782081,0.00020821,2]
[375004314,1753498249803,-389.18224421,0.00020821,2]
[375004316,1753498249813,-460.0,0.00020821,2]
[375004318,1753498249822,-460.0,0.00020821,2]
[375004320,1753498249831,-151.0,0.00020821,2]
[375004322,1753498249840,-151.0,0.00020821,2]
[375004323,1753498249849,-1178.73,0.00020821,2]
[375004325,1753498249859,-565.71,0.00020821,2]
[375004327,1753498249868,-460.0,0.00020821,2]
[375004329,1753498249878,-2820.58,0.00020821,2]
[375004331,1753498249887,-2259.96,0.00020821,2]
[375004333,1753498249896,-1229.32,0.00020821,2]
[375004335,1753498249906,-460.0,0.00020821,2]
[375004337,1753498249915,-460.0,0.00020821,2]
[375004339,1753498249925,-460.0,0.00020821,2]
[375004341,1753498249934,-460.0,0.00020821,2]
[375004343,1753498249944,-460.0,0.00020821,2]
[375004345,1753498249953,-699.22,0.00020821,2]
[375004347,1753498249963,-618.62,0.00020821,2]
[375004349,1753498249973,-460.0,0.00020821,2]
[375004351,1753498249982,-1475.59,0.00020821,2]
[375004353,1753498249992,-460.0,0.00020821,2]
[375004355,1753498250001,-1665.33,0.00020821,2]
[375004357,1753498250011,-460.0,0.00020821,2]
[375004358,1753498250020,-460.0,0.00020821,2]
[375004359,1753498250029,-474.81758013,0.00020821,2]
[375004360,1753498250038,-1016.28,0.00020821,2]
[375004361,1753498250047,-530.2,0.00020821,2]
[375004362,1753498250056,-4433.73,0.00020821,2]
[375004363,1753498250066,-460.0,0.00020821,2]
[375004364,1753498250075,-460.0,0.00020821,2]
[375004365,1753498250084,-437.19586062,0.00020821,2]
[375004366,1753498250093,-1794.08,0.00020821,2]
[375004367,1753498250102,-460.0,0.00020821,2]
[375004368,1753498250111,-460.0,0.00020821,2]
[375004369,1753498250120,-1702.62,0.00020821,2]
[375004370,1753498250129,-460.0,0.00020821,2]
[375004371,1753498250138,-197.24,0.00020821,2]
[375004372,1753498250147,-666.46,0.00020821,2]
[375004373,1753498250156,-541.02902111,0.00020821,2]
[375004374,1753498250166,-460.0,0.00020821,2]
[375004375,1753498250176,-460.0,0.00020821,2]
[375004376,1753498250185,-640.07,0.00020821,2]
[375004377,1753498250194,-1381.56,0.00020821,2]
[375004378,1753498250204,-460.0,0.00020821,2]
[375004379,1753498250213,-460.0,0.00020821,2]
[375004381,1753498250222,-460.0,0.00020821,2]
[375004383,1753498250232,-460.0,0.00020821,2]
[375004385,1753498250241,-174.590949,0.00020821,2]
[375004387,1753498250251,-1129.5,0.00020821,2]
[375004389,1753498250260,-174.590949,0.00020821,2]
[375004391,1753498250270,-460.0,0.00020821,2]
[375004393,1753498250280,-539.18794,0.00020821,2]
[375004395,1753498250290,-1282.11,0.00020821,2]
[375004397,1753498250299,-460.0,0.00020821,2]
[375004399,1753498250308,-460.0,0.00020821,2]
[375004401,1753498250318,-1104.23,0.00020821,2]
[375004403,1753498250328,-539.18794,0.00020821,2]
[375004405,1753498250337,-293.28,0.00020821,2]
[375004407,1753498250347,-974.25,0.00020821,2]
[375004409,1753498250356,-518.3161474,0.00020868,2]
[375004411,1753498250366,-506.84708757,0.00020868,2]
[375004413,1753498250375,-586.49270091,0.00020868,2]
[375004415,1753498250385,-501.0113501,0.00020868,2]
[375004417,1753498250394,-502.13920451,0.00020868,2]
[375004419,1753498250403,-501.54639231,0.00020868,2]
[375004421,1753498250413,-630.7265646,0.00020868,2]
[375004423,1753498250422,-1500.0,0.00020868,2]
[375004425,1753498250431,-503.67601331,0.00020868,2]
[375004427,1753498250441,-500.99195805,0.00020873,2]
[375004429,1753498250450,-500.62718892,0.00020873,2]
[375004431,1753498250459,-500.63707662,0.00020873,2]
[375004433,1753498250469,-407.81908233,0.00020873,2]
[375004435,1753498250478,-504.76733656,0.00020873,2]
[375004437,1753498250488,-150.0,0.00020882,2]
[375004439,1753498250497,-250.25192464,0.000209,2]
[375004441,1753498250506,-4782.91537499,0.000209,2]
[375004443,1753498250516,-516.86021688,0.00020931,2]
[375004445,1753498250525,-25000.0,0.0002095,2]
[375004447,1753498250535,-360.0,0.00020978,2]
[375004449,1753498250545,-151.963864,0.0002099,2]
[375004451,1753498250559,-151.0,0.0002099,2]
[375004453,1753498250569,-270.3550754,0.00021,2]
[375004455,1753498250578,-7133.28053981,0.00021,2]
[375004466,1753498250682,-462.59557922,0.00019178,2]
[375004468,1753498250691,-1474.12854963,0.00021,2]
[375004470,1753498250703,-1743.95357436,0.00021,2]
[375004473,1753498250714,-1038.4071728,0.00021,2]
[375004475,1753498250727,-2214.5971396,0.00021,2]
[375004484,1753498250807,-857.80998,0.00021,2]
[375004494,1753498250902,-182.3,0.0001906,3]
[375004496,1753498250912,-75.92,0.00019452,2]
[375004499,1753498250929,-460.0,0.00019178,2]
[375004501,1753498250939,-79.56785592,0.00019452,2]
[375004503,1753498250952,-304.51214408,0.00019452,2]
[375004505,1753498250961,-460.0,0.00019726,2]
[375004507,1753498250971,-460.0,0.0002,2]
[375004509,1753498250981,-460.0,0.00020273,2]
[375004511,1753498250990,-364.6,0.0002043,3]
[375004513,1753498251000,-460.0,0.00020547,2]
[375004515,1753498251010,-460.0,0.00020821,2]
[375004517,1753498251019,-6392.61868347,0.00021,2]
[375004519,1753498251032,-4408.62120994,0.00021,2]
[375004521,1753498251042,-228.940804,0.00021,2]
[375004523,1753498251051,-151.0,0.00021,2]
[375004525,1753498251061,-151.0,0.00021,2]
[375004527,1753498251071,-151.0,0.00021,2]
[375004529,1753498251081,-151.0,0.00021,2]
[375004531,1753498251091,-151.0,0.00021,2]
[375004533,1753498251100,-539.18794,0.00021,2]
[375004535,1753498251109,-539.18794,0.00021,2]
[375004537,1753498251119,-151.83254654,0.00021051,2]
[375004539,1753498251129,-500.0,0.00021051,2]
[375004540,1753498251138,-151.0,0.00021051,2]
[375004542,1753498251147,-359.0,0.00021051,2]
[375004544,1753498251157,-151.0,0.00021051,2]
[375004546,1753498251167,-152.73371011,0.00021051,2]
[375004548,1753498251177,-500.0,0.00021051,2]
[375004550,1753498251186,-151.0,0.00021051,2]
[375004552,1753498251195,-500.0,0.00021051,2]
[375004554,1753498251205,-323.61036944,0.00021055,2]
[375004566,1753498251312,-460.0,0.00019178,2]
[375004568,1753498251322,-460.0,0.00019452,2]
[375004570,1753498251331,-398.60506275,0.00019726,2]
[375004572,1753498251343,-61.39493725,0.00019726,2]
[375004574,1753498251353,-460.0,0.0002,2]
[375004576,1753498251363,-460.0,0.00020547,2]
[375004578,1753498251372,-460.0,0.00020821,2]
[375004580,1753498251382,-149.56211055,0.00021055,2]
[375004582,1753498251392,-500.0,0.00021055,2]
[375004584,1753498251401,-503.54387048,0.00021055,2]
[375004586,1753498251411,-500.0,0.00021055,2]
[375004588,1753498251421,-503.2765463,0.00021055,2]
[375004590,1753498251430,-500.0,0.00021055,2]
[375004592,1753498251439,-503.82421032,0.00021055,2]
[375004594,1753498251448,-500.0,0.00021055,2]
[375004596,1753498251458,-500.0,0.00021055,2]
[375004598,1753498251467,-500.0,0.00021064,2]
[375004600,1753498251477,-174.590949,0.00021064,2]
[375004602,1753498251487,-174.590949,0.00021064,2]
[375004604,1753498251496,-182.971494,0.00021095,2]
[375004606,1753498251505,-182.971494,0.00021095,2]
[375004608,1753498251515,-460.0,0.00021095,2]
[375004610,1753498251524,-533.2,0.00021095,2]
[375004612,1753498251533,-460.0,0.00021095,2]
[375004614,1753498251542,-460.0,0.00021095,2]
[375004616,1753498251554,-460.0,0.00021095,2]
[375004618,1753498251562,-460.0,0.00021095,2]
[375004620,1753498251573,-460.0,0.00021095,2]
[375004621,1753498251582,-133.12140554,0.00021095,2]
[375004643,1753498251789,-461.06835185,0.00019178,2]
[375004645,1753498251798,-271.08921304,0.00019178,2]
[375004648,1753498251814,-191.37227829,0.00019178,2]
[375004650,1753498251824,-460.0,0.00019178,2]
[375004652,1753498251834,-461.19180083,0.00019178,2]
[375004653,1753498251843,-270.98792462,0.00019178,2]
[375004656,1753498251855,-189.01207538,0.00019178,2]
[375004658,1753498251864,-326.87859446,0.00021095,2]
[375004660,1753498251873,-460.0,0.00021095,2]
[375004662,1753498251883,-460.0,0.00021095,2]
[375004663,1753498251892,-1178.73,0.00021095,2]
[375004665,1753498251902,-565.71,0.00021095,2]
[375004667,1753498251912,-460.0,0.00021095,2]
[375004669,1753498251921,-2820.58,0.00021095,2]
[375004671,1753498251931,-2259.96,0.00021095,2]
[375004673,1753498251940,-1229.32,0.00021095,2]
[375004675,1753498251949,-460.0,0.00021095,2]
[375004677,1753498251959,-460.0,0.00021095,2]
[375004679,1753498251968,-460.0,0.00021095,2]
[375004681,1753498251977,-460.0,0.00021095,2]
[375004683,1753498251987,-460.0,0.00021095,2]
[375004685,1753498251996,-699.22,0.00021095,2]
[375004687,1753498252005,-618.62,0.00021095,2]
[375004689,1753498252014,-460.0,0.00021095,2]
[375004691,1753498252023,-1475.59,0.00021095,2]
[375004693,1753498252032,-460.0,0.00021095,2]
[375004695,1753498252042,-1665.33,0.00021095,2]
[375004697,1753498252052,-220.0,0.00021095,2]
[375004699,1753498252062,-460.0,0.00021095,2]
[375004701,1753498252073,-1016.28,0.00021095,2]
[375004703,1753498252082,-530.2,0.00021095,2]
[375004705,1753498252092,-4433.73,0.00021095,2]
[375004707,1753498252101,-460.0,0.00021095,2]
[375004709,1753498252111,-460.0,0.00021095,2]
[375004711,1753498252120,-1794.08,0.00021095,2]
[375004713,1753498252129,-460.0,0.00021095,2]
[375004715,1753498252138,-460.0,0.00021095,2]
[375004717,1753498252148,-1702.62,0.00021095,2]
[375004719,1753498252157,-666.46,0.00021095,2]
[375004721,1753498252167,-460.0,0.00021095,2]
[375004723,1753498252177,-460.0,0.00021095,2]
[375004725,1753498252186,-640.07,0.00021095,2]
[375004727,1753498252198,-1381.56,0.00021095,2]
[375004729,1753498252207,-460.0,0.00021095,2]
[375004731,1753498252216,-460.0,0.00021095,2]
[375004733,1753498252226,-460.0,0.00021095,2]
[375004735,1753498252235,-1129.5,0.00021095,2]
[375004737,1753498252244,-460.0,0.00021095,2]
[375004739,1753498252254,-460.0,0.00021095,2]
[375004741,1753498252263,-1282.11,0.00021095,2]
[375004743,1753498252272,-460.0,0.00021095,2]
[375004745,1753498252282,-460.0,0.00021095,2]
[375004747,1753498252291,-1104.23,0.00021095,2]
[375004749,1753498252301,-974.25,0.00021095,2]
[375004751,1753498252310,-460.0,0.00021095,2]
[375004752,1753498252321,-460.0,0.00021095,2]
[375004753,1753498252331,-180.40883518,0.00021124,2]
[375004754,1753498252341,-151.0,0.000212,4]
[375004755,1753498252351,-500.0,0.00021325,2]
[375004756,1753498252360,-153.30412092,0.00021325,2]
[375004757,1753498252370,-270.06449215,0.00021325,2]
[375004758,1753498252379,-500.0,0.00021325,2]
[375004759,1753498252390,-219.75252538,0.00021325,2]
[375004760,1753498252399,-510.0,0.00021325,2]
[375004761,1753498252409,-501.15204542,0.00021352,2]
[375004762,1753498252418,-2500.0,0.00021364,2]
[375004763,1753498252429,-227.59418,0.00021369,2]
[375004764,1753498252438,-182.971494,0.00021369,2]
[375004765,1753498252447,-182.971494,0.00021369,2]
[375004766,1753498252457,-555.48705418,0.00021369,2]
[375004767,1753498252545,-0.8265228,0.00021369,2]
[375007382,1753498694192,24900.0,0.00017968,2]
[375007383,1753498923287,157.473168,0.00013699,2]
[375007395,1753499335373,55434.09954365,0.00025,60]
[375007396,1753499335395,56435.78,0.00025,60]
[375007397,1753499335417,56435.78,0.00025,60]
[375007398,1753499335440,56435.78,0.00025,60]
[375007399,1753499335462,56435.78,0.00025,60]
[375007400,1753499335483,3538.5,0.00025,60]
[375007420,1753499432496,-387.64516266,0.00018868,2]
[375007421,1753499432507,-51.91983734,0.00018873,2]
[375007422,1753499432519,-109.12102681,0.00018873,2]
[375007423,1753499432528,-157.98,0.0001896,3]
[375007429,1753499432661,-789.92,0.0001896,3]
[375007431,1753499432671,-1200.0,0.00018966,2]
[375007433,1753499432681,-300.0,0.00018966,2]
[375007434,1753499432691,-300.0,0.00018966,2]
[375007435,1753499432700,-300.0,0.00018966,2]
[375007436,1753499432710,-571.0,0.00018966,2]
[375007437,1753499432719,-300.0,0.00018966,2]
[375007438,1753499432729,-50000.0,0.00018966,2]
[375007439,1753499432738,-188.28830489,0.00018969,2]
[375007440,1753499432748,-195659.98561252,0.0001897,2]
[375007441,1753499432759,-8059.32479954,0.0001897,2]
[375007442,1753499432770,-20561.74706455,0.0001897,2]
[375007557,1753499438307,-418.66054375,0.00018965,2]
[375007560,1753499438317,-516.86926325,0.00018965,2]
[375007562,1753499438334,-504.89337257,0.00018965,2]
[375007564,1753499438344,-60.16670231,0.00018965,2]
[375007566,1753499438355,-439.83329769,0.00018965,2]
[375007568,1753499438366,-500.0,0.00018965,2]
[375007570,1753499438376,-40.94785464,0.00018965,2]
[375007572,1753499438388,-459.05214536,0.00018965,2]
[375007574,1753499438399,-500.0,0.00018965,2]
[375007576,1753499438408,-529.20455989,0.00018965,2]
[375007578,1753499438418,-12540.17047698,0.0001897,2]
[375007580,1753499438428,-500.0,0.00018973,2]
[375007582,1753499438439,-500.0,0.00018973,2]
[375007584,1753499438449,-508.1515286,0.00018973,2]
[375007586,1753499438458,-500.0,0.00018973,2]
[375007588,1753499438468,-501.58713635,0.00018973,2]
[375007590,1753499438477,-161.04086414,0.00018993,2]
[375007592,1753499438487,-3036.04743312,0.00019073,2]
[375007595,1753499438503,-407.50811522,0.00019073,2]
[375007597,1753499438515,-1101.379751,0.00019073,2]
[375007599,1753499438525,-270.13541551,0.00019073,2]
[375007601,1753499438537,-568.26178645,0.00019073,2]
[375007603,1753499438549,-255.22365774,0.00019073,2]
[375007605,1753499438558,-50.82619955,0.00019113,2]
[375007608,1753499438569,-110.21466459,0.00019113,2]
[375007610,1753499438578,-500.0,0.00019173,2]
[375007612,1753499438588,-500.0,0.00019173,2]
[375007614,1753499438598,-270.59131655,0.00019173,2]
[375007616,1753499438608,-501.33194307,0.00019173,2]
[375007618,1753499438618,-523.35403807,0.00019173,2]
[375007620,1753499438628,-500.0,0.00019173,2]
[375007622,1753499438637,-500.0,0.00019173,2]
[375007624,1753499438646,-500.0,0.00019173,2]
[375007626,1753499438655,-500.0,0.00019173,2]
[375007628,1753499438665,-509.76718022,0.00019173,2]
[375007630,1753499438674,-500.0,0.00019173,2]
[375007631,1753499438684,-501.19879524,0.00019173,2]
[375007633,1753499438694,-500.0,0.00019173,2]
[375007635,1753499438703,-340.16257798,0.00019173,2]
[375007637,1753499438712,-500.0,0.00019173,2]
[375007639,1753499438722,-500.0,0.00019173,2]
[375007642,1753499438733,-557.6656941,0.00019173,2]
[375007644,1753499438743,-500.0,0.00019173,2]
[375007646,1753499438752,-500.0,0.00019173,2]
[375007648,1753499438762,-500.0,0.00019173,2]
[375007650,1753499438772,-501.22221015,0.00019173,2]
[375007652,1753499438781,-500.68421469,0.00019173,2]
[375007654,1753499438790,-502.63088498,0.00019173,2]
[375007656,1753499438800,-500.0,0.00019173,2]
[375007658,1753499438810,-500.0,0.00019173,2]
[375007660,1753499438819,-500.0,0.00019173,2]
[375007662,1753499438829,-500.0,0.00019173,2]
[375007664,1753499438839,-500.62718892,0.00019173,2]
[375007666,1753499438848,-460.0,0.00019178,2]
[375007668,1753499438857,-460.0,0.00019178,2]
[375007670,1753499438867,-460.0,0.00019178,2]
[375007672,1753499438876,-270.16316288,0.00019178,2]
[375007674,1753499438886,-173.36793713,0.00019178,2]
[375007676,1753499438895,-460.0,0.00019178,2]
[375007678,1753499438905,-464.48442416,0.00019178,2]
[375007680,1753499438915,-460.0,0.00019178,2]
[375007682,1753499438924,-460.0,0.00019178,2]
[375007684,1753499438933,-462.77649244,0.00019178,2]
[375007686,1753499438943,-460.98113513,0.00019178,2]
[375007688,1753499438952,-461.28892841,0.00019178,2]
[375007690,1753499438962,-461.87359075,0.00019178,2]
[375007692,1753499438971,-460.0,0.00019178,2]
[375007694,1753499438980,-461.73559137,0.00019178,2]
[375007696,1753499438990,-460.0,0.00019178,2]
[375007698,1753499438999,-460.0,0.00019178,2]
[375007699,1753499439008,-460.0,0.00019178,2]
[375007700,1753499439018,-462.12319921,0.00019178,2]
[375007701,1753499439033,-460.0,0.00019178,2]
[375007704,1753499439046,-463.44039403,0.00019178,2]
[375007706,1753499439060,-455.93676953,0.00019178,2]
[375007709,1753499439073,-460.0,0.00019178,2]
[375007711,1753499439084,-461.73627868,0.00019178,2]
[375007713,1753499439096,-461.52556968,0.00019178,2]
[375007715,1753499439109,-461.96775347,0.00019178,2]
[375007718,1753499439122,-462.90178841,0.00019178,2]
[375007720,1753499439134,-464.5262623,0.00019178,2]
[375007722,1753499439148,-460.0,0.00019178,2]
[375007725,1753499439160,-461.42766076,0.00019178,2]
[375007727,1753499439172,-460.0,0.00019178,2]
[375007729,1753499439188,-512.40256349,0.00019178,2]
[375007732,1753499439202,-460.0,0.00019178,2]
[375007734,1753499439214,-460.0,0.00019178,2]
[375007735,1753499439239,-460.0,0.00019178,2]
[375007736,1753499439260,-461.88321817,0.00019178,2]
[375007737,1753499439275,-460.0,0.00019178,2]
[375007738,1753499439290,-460.0,0.00019178,2]
[375007739,1753499439307,-461.1014766,0.00019178,2]
[375007740,1753499439322,-460.0,0.00019178,2]
[375007741,1753499439337,-460.0,0.00019178,2]
[375007742,1753499439348,-460.0,0.00019178,2]
[375007743,1753499439359,-461.65232381,0.00019178,2]
[375007744,1753499439374,-460.0,0.00019178,2]
[375007745,1753499439385,-460.82054106,0.00019178,2]
[375007746,1753499439399,-460.0,0.00019178,2]
[375007747,1753499439413,-460.0,0.00019178,2]
[375007748,1753499439428,-460.0,0.00019178,2]
[375007749,1753499439442,-461.72780175,0.00019178,2]
[375007750,1753499439457,-460.0,0.00019178,2]
[375007751,1753499439472,-379.05771525,0.00019178,2]
[375007752,1753499439485,-460.0,0.00019178,2]
[375007753,1753499439500,-460.0,0.00019178,2]
[375007754,1753499439510,-460.0,0.00019178,2]
[375007755,1753499439523,-463.35053116,0.00019178,2]
[375007756,1753499439533,-461.90022708,0.00019178,2]
[375007757,1753499439545,-506.58085314,0.00019178,2]
[375007758,1753499439558,-460.0,0.00019178,2]
[375007759,1753499439572,-464.07652316,0.00019178,2]
[375007760,1753499439585,-462.01666616,0.00019178,2]
[375007761,1753499439598,-460.0,0.00019178,2]
[375007762,1753499439609,-460.0,0.00019178,2]
[375007764,1753499439621,-460.0,0.00019178,2]
[375007765,1753499439633,-460.6668217,0.00019178,2]
[375007767,1753499439647,-465.62498905,0.00019178,2]
[375007769,1753499439659,-461.01246886,0.00019178,2]
[375007771,1753499439670,-460.0,0.00019178,2]
[375007773,1753499439681,-460.0,0.00019178,2]
[375007775,1753499439693,-463.52397125,0.00019178,2]
[375007776,1753499439704,-460.0,0.00019178,2]
[375007777,1753499439715,-461.89500532,0.00019178,2]
[375007778,1753499439728,-465.01488288,0.00019178,2]
[375007779,1753499439742,-462.10786033,0.00019178,2]
[375007780,1753499439754,-460.0,0.00019178,2]
[375007781,1753499439766,-242.88365157,0.00019178,2]
[375007782,1753499439779,-462.11451534,0.00019178,2]
[375007783,1753499439792,-460.0,0.00019178,2]
[375007784,1753499439804,-463.55449815,0.00019178,2]
[375007785,1753499439817,-460.0,0.00019178,2]
[375007787,1753499439829,-460.0,0.00019178,2]
[375007788,1753499439841,-460.0,0.00019178,2]
[375007789,1753499439852,-460.72990425,0.00019178,2]
[375007790,1753499439864,-498.25228444,0.00019178,2]
[375007791,1753499439877,-460.0,0.00019178,2]
[375007792,1753499439889,-460.0,0.00019178,2]
[375007793,1753499439901,-460.0,0.00019178,2]
[375007794,1753499439913,-461.1206978,0.00019178,2]
[375007796,1753499439925,-460.0,0.00019178,2]
[375007798,1753499439936,-460.0,0.00019178,2]
[375007799,1753499439948,-460.0,0.00019178,2]
[375007800,1753499439959,-460.0,0.00019178,2]
[375007801,1753499439970,-30.64513508,0.00019178,2]
[375007804,1753499440294,-429.35486492,0.00019178,2]
[375007806,1753499440304,-460.0,0.00019178,2]
[375007808,1753499440314,-461.28483616,0.00019178,2]
[375007810,1753499440327,-460.0,0.00019178,2]
[375007812,1753499440337,-460.0,0.00019178,2]
[375007815,1753499440347,-460.0,0.00019178,2]
[375007817,1753499440357,-460.0,0.00019178,2]
[375007819,1753499440366,-460.0,0.00019178,2]
[375007821,1753499440376,-465.0843164,0.00019178,2]
[375007823,1753499440386,-462.01917259,0.00019178,2]
[375007825,1753499440396,-460.0,0.00019178,2]
[375007827,1753499440406,-460.0,0.00019178,2]
[375007829,1753499440416,-461.6923755,0.00019178,2]
[375007831,1753499440425,-462.49471782,0.00019178,2]
[375007833,1753499440434,-461.19179618,0.00019178,2]
[375007835,1753499440444,-460.0,0.00019178,2]
[375007837,1753499440453,-460.0,0.00019178,2]
[375007839,1753499440462,-460.0,0.00019178,2]
[375007841,1753499440471,-460.0,0.00019178,2]
[375007843,1753499440480,-460.0,0.00019178,2]
[375007845,1753499440490,-460.0,0.00019178,2]
[375007847,1753499440500,-462.1216627,0.00019178,2]
[375007849,1753499440509,-460.0,0.00019178,2]
[375007851,1753499440519,-460.39785087,0.00019178,2]
[375007853,1753499440528,-460.0,0.00019178,2]
[375007855,1753499440538,-460.0,0.00019178,2]
[375007857,1753499440547,-460.9548213,0.00019178,2]
[375007859,1753499440557,-416.62120286,0.00019178,2]
[375007861,1753499440566,-460.0,0.00019178,2]
[375007863,1753499440575,-460.0,0.00019178,2]
[375007865,1753499440585,-463.36922938,0.00019178,2]
[375007867,1753499440595,-462.87975586,0.00019178,2]
[375007869,1753499440605,-460.0,0.00019178,2]
[375007871,1753499440614,-460.0,0.00019178,2]
[375007873,1753499440623,-461.87583676,0.00019178,2]
[375007875,1753499440634,-410.90860882,0.00019178,2]
[375007877,1753499440643,-465.47424635,0.00019178,2]
[375007879,1753499440652,-460.0,0.00019178,2]
[375007881,1753499440661,-460.0,0.00019178,2]
[375007882,1753499440670,-191.46257066,0.00019178,2]
[375007884,1753499440680,-460.0,0.00019178,2]
[375007886,1753499440689,-463.36853982,0.00019178,2]
[375007888,1753499440698,-460.0,0.00019178,2]
[375007890,1753499440707,-460.58551538,0.00019178,2]
[375007892,1753499440716,-460.45955838,0.00019178,2]
[375007894,1753499440726,-460.0,0.00019178,2]
[375007896,1753499440736,-460.0,0.00019178,2]
[375007898,1753499440745,-460.0,0.00019178,2]
[375007900,1753499440755,-333.87346365,0.00019178,2]
[375007902,1753499440764,-460.0,0.00019178,2]
[375007904,1753499440774,-460.0,0.00019178,2]
[375007906,1753499440783,-460.0,0.00019178,2]
[375007908,1753499440792,-460.0,0.00019178,2]
[375007910,1753499440802,-460.0,0.00019178,2]
[375007912,1753499440812,-460.0,0.00019178,2]
[375007914,1753499440822,-460.0,0.00019178,2]
[375007916,1753499440831,-460.0,0.00019178,2]
[375007918,1753499440840,-460.0,0.00019178,2]
[375007921,1753499440851,-460.0,0.00019178,2]
[375007923,1753499440861,-26.95966258,0.00019178,2]
[375007925,1753499440875,-437.95301146,0.00019178,2]
[375007927,1753499440885,-460.0,0.00019178,2]
[375007929,1753499440895,-460.0,0.00019178,2]
[375007931,1753499440904,-460.0,0.00019178,2]
[375007933,1753499440914,-461.3729255,0.00019178,2]
[375007935,1753499440923,-460.0,0.00019178,2]
[375007937,1753499440933,-460.0,0.00019178,2]
[375007939,1753499440944,-460.0,0.00019178,2]
[375007941,1753499440954,-460.0,0.00019178,2]
[375007943,1753499440963,-460.0,0.00019178,2]
[375007945,1753499440973,-463.32418426,0.00019178,2]
[375007947,1753499440983,-460.0,0.00019178,2]
[375007949,1753499440993,-410.45510196,0.00019178,2]
[375007951,1753499441003,-460.0,0.00019178,2]
[375007953,1753499441013,-460.79973453,0.00019178,2]
[375007955,1753499441022,-466.19483135,0.00019178,2]
[375007957,1753499441035,-463.12010967,0.00019178,2]
[375007959,1753499441044,-461.82706297,0.00019178,2]
[375007961,1753499441054,-540.55364925,0.00019178,2]
[375007963,1753499441063,-463.27524776,0.00019178,2]
[375007965,1753499441072,-460.0,0.00019178,2]
[375007967,1753499441082,-460.0,0.00019178,2]
[375007969,1753499441091,-505.74538094,0.00019178,2]
[375007971,1753499441100,-460.0,0.00019178,2]
[375007973,1753499441110,-460.0,0.00019178,2]
[375007975,1753499441119,-460.0,0.00019178,2]
[375007977,1753499441128,-460.0,0.00019178,2]
[375007978,1753499441138,-460.0,0.00019178,2]
[375007980,1753499441147,-460.0,0.00019178,2]
[375007982,1753499441157,-462.60337648,0.00019178,2]
[375007984,1753499441166,-460.0,0.00019178,2]
[375007986,1753499441175,-463.53880513,0.00019178,2]
[375007988,1753499441184,-460.0,0.00019178,2]
[375007990,1753499441194,-460.0,0.00019178,2]
[375007992,1753499441203,-425.61764031,0.00019178,2]
[375007994,1753499441212,-460.0,0.00019178,2]
[375007996,1753499441221,-224.2089758,0.00019178,2]
[375007998,1753499441231,-460.0,0.00019178,2]
[375008000,1753499441240,-460.0,0.00019178,2]
[375008002,1753499441250,-460.0,0.00019178,2]
[375008004,1753499441261,-460.0,0.00019178,2]
[375008006,1753499441270,-464.4383829,0.00019178,2]